fUSD/lending_fUSD_20250209
["ID","MTS","AMOUNT","RATE_DAILY","PERIOD"]
[352382256,1739069442152,-500.0,0.00010125,2]
[352382257,1739069442162,-500.0,0.00010125,2]
[352382258,1739069442170,-500.0,0.00010125,2]
[352382259,1739069442180,-500.0,0.00010125,2]
[352382260,1739069442189,-850.73,0.00010125,2]
[352382261,1739069442199,-500.0,0.00010125,2]
[352382262,1739069442209,-500.0,0.00010125,2]
[352382263,1739069442219,-810.94,0.00010125,2]
[352382264,1739069442229,-500.0,0.00010125,2]
[352382265,1739069442242,-500.0,0.00010125,2]
[352382266,1739069442252,-819.57,0.00010125,2]
[352382267,1739069442261,-500.0,0.00010125,2]
[352382268,1739069442270,-556.76,0.00010125,2]
[352382269,1739069442281,-881.6,0.00010125,2]
[352382270,1739069442290,-822.99,0.00010125,2]
[352382271,1739069442300,-720.56,0.00010125,2]
[352382272,1739069442310,-500.0,0.00010125,2]
[352382273,1739069442320,-500.0,0.00010125,2]
[352382274,1739069442330,-695.07,0.00010125,2]
[352382275,1739069442340,-788.71,0.00010125,2]
[352382276,1739069442350,-793.3,0.00010125,2]
[352382277,1739069442359,-500.0,0.00010125,2]
[352382278,1739069442369,-500.0,0.00010125,2]
[352382279,1739069442379,-775.16,0.00010125,2]
[352382280,1739069442388,-760.1,0.00010125,2]
[352382281,1739069442398,-646.22,0.00010125,2]
[352382282,1739069442408,-500.0,0.00010125,2]
[352382283,1739069442417,-500.0,0.00010125,2]
[352382284,1739069442427,-208.9223818,0.00010125,2]
[352382285,1739069442436,-1572.53,0.00010125,2]
[352382286,1739069442445,-1155.73,0.00010125,2]
[352382287,1739069442455,-858.34,0.00010125,2]
[352382288,1739069442464,-500.0,0.00010125,2]
[352382289,1739069442474,-500.0,0.00010125,2]
[352382290,1739069442484,-1692.92,0.00010125,2]
[352382291,1739069442494,-500.0,0.00010125,2]
[352382292,1739069442503,-2633.54,0.00010125,2]
[352382293,1739069442513,-1151.5,0.00010125,2]
[352382294,1739069442522,-782.41,0.00010125,2]
[352382295,1739069442531,-1084.12,0.00010125,2]
[352382296,1739069442542,-500.0,0.00010125,2]
[352382297,1739069442552,-667.59,0.00010125,2]
[352382298,1739069442562,-519.83999697,0.00010125,2]
[352382299,1739069442571,-2395.35,0.00010125,2]
[352382300,1739069442581,-500.0,0.00010125,2]
[352382301,1739069442590,-608.93,0.00010125,2]
[352382302,1739069442600,-1744.39,0.00010125,2]
[352382303,1739069442609,-713.37,0.00010125,2]
[352382304,1739069442618,-1920.7,0.00010125,2]
[352382305,1739069442627,-1775.02,0.00010125,2]
[352382306,1739069442637,-500.0,0.00010125,2]
[352382307,1739069442646,-998.71,0.00010125,2]
[352382308,1739069442655,-674.24,0.00010125,2]
[352382309,1739069442665,-500.0,0.00010125,2]
[352382310,1739069442674,-1286.34,0.00010125,2]
[352382311,1739069442683,-785.89,0.00010125,2]
[352382312,1739069442692,-500.0,0.00010125,2]
[352382313,1739069442701,-1431.71,0.00010125,2]
[352382314,1739069442711,-2291.65,0.00010125,2]
[352382315,1739069442720,-500.0,0.00010125,2]
[352382316,1739069442729,-531.34,0.00010125,2]
[352382317,1739069442739,-984.4,0.00010125,2]
[352382318,1739069442749,-918.47,0.00010125,2]
[352382319,1739069442759,-500.0,0.00010125,2]
[352382320,1739069442768,-500.0,0.00010125,2]
[352382321,1739069442778,-1681.15,0.00010125,2]
[352382322,1739069442788,-586.82,0.00010125,2]
[352382323,1739069442797,-652.27,0.00010125,2]
[352382324,1739069442806,-906.36,0.00010125,2]
[352382325,1739069442815,-2072.47,0.00010125,2]
[352382326,1739069442824,-545.48,0.00010125,2]
[352382327,1739069442833,-500.0,0.00010125,2]
[352382328,1739069442842,-852.61,0.00010125,2]
[352382329,1739069442852,-500.0,0.00010125,2]
[352382330,1739069442861,-500.0,0.00010125,2]
[352382332,1739069442870,-500.0,0.00010125,2]
[352382333,1739069442881,-500.0,0.00010125,2]
[352382334,1739069442892,-500.0,0.00010125,2]
[352382335,1739069442902,-1204.52,0.00010125,2]
[352382336,1739069442911,-581.58,0.00010125,2]
[352382338,1739069442921,-500.0,0.00010125,2]
[352382339,1739069442932,-307.9508222,0.00010125,2]
[352382340,1739069442942,-1195.82,0.00010125,2]
[352382341,1739069442952,-500.0,0.00010125,2]
[352382342,1739069442961,-515.75919426,0.00010125,2]
[352382343,1739069442971,-500.0,0.00010125,2]
[352382344,1739069442980,-1261.96,0.00010125,2]
[352382345,1739069442990,-500.0,0.00010125,2]
[352382347,1739069442999,-1407.94,0.00010125,2]
[352382349,1739069443009,-885.46,0.00010125,2]
[352382351,1739069443018,-500.0,0.00010126,2]
[352382353,1739069443028,-1639.17,0.00010126,2]
[352382355,1739069443038,-1907.18154767,0.00010126,2]
[352382357,1739069443059,-313.39845233,0.00010126,2]
[352382359,1739069443069,-4677.96,0.00010126,2]
[352382361,1739069443079,-1113.07,0.00010126,2]
[352382362,1739069443088,-1207.41,0.00010126,2]
[352382363,1739069443098,-1237.76,0.00010126,2]
[352382364,1739069443107,-701.32,0.00010126,2]
[352382365,1739069443116,-2295.98,0.00010126,2]
[352382366,1739069443127,-500.0,0.00010126,2]
[352382367,1739069443137,-918.0,0.00010126,2]
[352382368,1739069443147,-974.27,0.00010126,2]
[352382369,1739069443157,-1487.4,0.00010126,2]
[352382370,1739069443166,-1000.0,0.00010126,2]
[352382371,1739069443176,-1078.29,0.00010126,2]
[352382372,1739069443185,-1542.41,0.00010126,2]
[352382373,1739069443194,-1875.97,0.00010126,2]
[352382374,1739069443204,-500.0,0.00010127,2]
[352382375,1739069443213,-221.91115446,0.00010127,2]
[352382377,1739069443223,-501.16991906,0.00010127,2]
[352382379,1739069443235,-499.59488612,0.00010127,2]
[352382381,1739069443244,-501.23182657,0.00010127,2]
[352382382,1739069443254,-502.00134901,0.00010127,2]
[352382383,1739069443264,-501.67691997,0.00010127,2]
[352382384,1739069443275,-501.4675068,0.00010127,2]
[352382385,1739069443284,-502.33035886,0.00010127,2]
[352382386,1739069443294,-501.85250831,0.00010127,2]
[352382387,1739069443302,-501.25082188,0.00010127,2]
[352382388,1739069443312,-369.51,0.00010127,2]
[352382389,1739069443322,-500.0,0.00010136,2]
[352382390,1739069443331,-500.0,0.00010136,2]
[352382391,1739069443341,-385.01462551,0.00010136,2]
[352382392,1739069443351,-500.0,0.00010136,2]
[352382393,1739069443360,-500.0,0.00010136,2]
[352382394,1739069443370,-500.0,0.00010136,2]
[352382395,1739069443379,-500.0,0.00010136,2]
[352382396,1739069443388,-500.0,0.00010136,2]
[352382397,1739069443398,-591.75198509,0.00010136,2]
[352382398,1739069443408,-565.43237402,0.00010136,2]
[352382399,1739069443418,-500.0,0.00010136,2]
[352382400,1739069443427,-500.0,0.00010136,2]
[352382401,1739069443436,-500.0,0.00010136,2]
[352382402,1739069443446,-500.0,0.00010136,2]
[352382403,1739069443455,-500.0,0.00010136,2]
[352382404,1739069443464,-500.0,0.00010136,2]
[352382405,1739069443474,-500.0,0.00010136,2]
[352382406,1739069443483,-500.0,0.00010136,2]
[352382407,1739069443493,-500.0,0.00010136,2]
[352382408,1739069443503,-500.0,0.00010136,2]
[352382409,1739069443512,-500.0,0.00010136,2]
[352382410,1739069443569,-500.0,0.00010136,2]
[352382411,1739069443579,-542.94264312,0.00010136,2]
[352382412,1739069443588,-612.19,0.00010136,2]
[352382413,1739069443597,-439.34479873,0.00010136,2]
[352382414,1739069443606,-500.0,0.00010136,2]
[352382415,1739069443617,-500.0,0.00010136,2]
[352382416,1739069443626,-500.0,0.00010136,2]
[352382417,1739069443636,-500.0,0.00010136,2]
[352382418,1739069443645,-500.0,0.00010136,2]
[352382419,1739069443655,-500.0,0.00010136,2]
[352382420,1739069443665,-500.0,0.00010136,2]
[352382421,1739069443674,-500.0,0.00010136,2]
[352382422,1739069443684,-500.0,0.00010136,2]
[352382423,1739069443693,-500.0,0.00010136,2]
[352382424,1739069443702,-500.0,0.00010136,2]
[352382425,1739069443711,-500.0,0.00010136,2]
[352382426,1739069443720,-500.0,0.00010136,2]
[352382427,1739069443729,-500.0,0.00010136,2]
[352382429,1739069443739,-500.0,0.00010136,2]
[352382431,1739069443748,-500.0,0.00010136,2]
[352382433,1739069443758,-166.65782627,0.00010136,2]
[352382435,1739069443767,-399.3901182,0.00010136,2]
[352382437,1739069443777,-500.0,0.00010136,2]
[352382439,1739069443786,-500.0,0.00010136,2]
[352382441,1739069443795,-500.0,0.00010136,2]
[352382443,1739069443805,-523.94189955,0.00010136,2]
[352382445,1739069443814,-500.0,0.00010136,2]
[352382447,1739069443824,-500.0,0.00010136,2]
[352382449,1739069443833,-500.0,0.00010136,2]
[352382451,1739069443842,-500.0,0.00010136,2]
[352382453,1739069443851,-500.0,0.00010136,2]
[352382454,1739069443862,-500.0,0.00010136,2]
[352382455,1739069443872,-500.0,0.00010136,2]
[352382456,1739069443882,-500.0,0.00010136,2]
[352382458,1739069443891,-500.0,0.00010136,2]
[352382460,1739069443901,-500.0,0.00010136,2]
[352382462,1739069443910,-500.0,0.00010136,2]
[352382464,1739069443919,-500.0,0.00010136,2]
[352382466,1739069443929,-500.0,0.00010136,2]
[352382467,1739069443938,-500.0,0.00010136,2]
[352382468,1739069443947,-463.0171187,0.00010136,2]
[352382469,1739069443957,-500.0,0.00010136,2]
[352382470,1739069443966,-202.90320672,0.00010136,2]
[352382471,1739069443975,-515.18746133,0.00010136,2]
[352382472,1739069443984,-500.0,0.00010136,2]
[352382473,1739069443993,-500.0,0.00010136,2]
[352382474,1739069444002,-500.0,0.00010136,2]
[352382475,1739069444011,-500.0,0.00010136,2]
[352382476,1739069444020,-500.0,0.00010136,2]
[352382477,1739069444029,-500.0,0.00010136,2]
[352382478,1739069444038,-500.0,0.00010136,2]
[352382479,1739069444048,-500.0,0.00010136,2]
[352382480,1739069444057,-500.0,0.00010136,2]
[352382481,1739069444066,-500.0,0.00010136,2]
[352382482,1739069444075,-500.0,0.00010136,2]
[352382483,1739069444084,-500.0,0.00010136,2]
[352382484,1739069444094,-500.0,0.00010136,2]
[352382485,1739069444104,-500.0,0.00010136,2]
[352382486,1739069444113,-500.0,0.00010136,2]
[352382487,1739069444123,-500.0,0.00010136,2]
[352382488,1739069444132,-500.0,0.00010136,2]
[352382489,1739069444141,-500.0,0.00010136,2]
[352382490,1739069444151,-500.0,0.00010136,2]
[352382491,1739069444162,-500.0,0.00010136,2]
[352382492,1739069444171,-500.0,0.00010136,2]
[352382493,1739069444180,-506.50783909,0.00010136,2]
[352382494,1739069444190,-500.0,0.00010136,2]
[352382495,1739069444199,-500.0,0.00010136,2]
[352382496,1739069444209,-500.0,0.00010136,2]
[352382497,1739069444219,-500.0,0.00010136,2]
[352382498,1739069444229,-530.70475747,0.00010136,2]
[352382499,1739069444242,-500.0,0.00010136,2]
[352382500,1739069444251,-500.0,0.00010136,2]
[352382501,1739069444260,-500.0,0.00010136,2]
[352382502,1739069444269,-621.60536625,0.00010136,2]
[352382503,1739069444279,-500.0,0.00010136,2]
[352382504,1739069444288,-500.0,0.00010136,2]
[352382505,1739069444297,-500.0,0.00010136,2]
[352382506,1739069444306,-422.45026218,0.00010136,2]
[352382507,1739069444318,-500.0,0.00010136,2]
[352382508,1739069444328,-579.76,0.00010136,2]
[352382509,1739069444337,-500.0,0.00010136,2]
[352382510,1739069444347,-486.32055024,0.00010136,2]
[352382511,1739069444356,-500.0,0.00010136,2]
[352382512,1739069444366,-500.0,0.00010136,2]
[352382513,1739069444375,-576.76,0.00010136,2]
[352382514,1739069444384,-500.0,0.00010136,2]
[352382515,1739069444393,-585.88,0.00010136,2]
[352382516,1739069444403,-500.0,0.00010136,2]
[352382517,1739069444413,-651.15,0.00010136,2]
[352382518,1739069444422,-500.0,0.00010136,2]
[352382519,1739069444431,-500.0,0.00010136,2]
[352382520,1739069444441,-500.0,0.00010136,2]
[352382521,1739069444450,-500.0,0.00010136,2]
[352382522,1739069444459,-500.0,0.00010136,2]
[352382523,1739069444468,-500.0,0.00010136,2]
[352382524,1739069444477,-500.0,0.00010136,2]
[352382525,1739069444487,-792.41,0.00010136,2]
[352382526,1739069444496,-500.0,0.00010136,2]
[352382527,1739069444506,-948.02,0.00010136,2]
[352382528,1739069444515,-500.0,0.00010136,2]
[352382529,1739069444525,-500.0,0.00010136,2]
[352382530,1739069444534,-500.0,0.00010136,2]
[352382531,1739069444544,-816.74,0.00010136,2]
[352382532,1739069444555,-500.0,0.00010136,2]
[352382533,1739069444565,-500.0,0.00010136,2]
[352382534,1739069444578,-536.53971781,0.00010136,2]
[352382535,1739069444588,-500.0,0.00010136,2]
[352382536,1739069444598,-500.0,0.00010136,2]
[352382537,1739069444607,-281.91253623,0.00010136,2]
[352382538,1739069444616,-197.59,0.00010137,2]
[352382539,1739069444626,-305.58829853,0.00010195,2]
[352382540,1739069444636,-1398.56,0.00010195,2]
[352382541,1739069444647,-788.18,0.00010195,2]
[352382542,1739069444656,-1050.23,0.00010195,2]
[352382543,1739069444664,-703.79,0.00010195,2]
[352382544,1739069444673,-995.5,0.00010195,2]
[352382545,1739069444683,-754.344585,0.00010195,2]
[352382546,1739069444692,-500.0,0.00010195,2]
[352382547,1739069444701,-837.418506,0.00010195,2]
[352382548,1739069444710,-571.5,0.00010195,2]
[352382549,1739069444719,-1439.98,0.00010195,2]
[352382550,1739069444728,-1335.02,0.00010195,2]
[352382551,1739069444736,-559.11,0.00010195,2]
[352382552,1739069444746,-1093.73,0.00010195,2]
[352382553,1739069444755,-803.53,0.00010195,2]
[352382554,1739069444765,-1890.81,0.00010195,2]
[352382555,1739069444774,-1559.98,0.00010195,2]
[352382556,1739069444784,-967.4,0.00010195,2]
[352382557,1739069444795,-1029.95,0.00010195,2]
[352382558,1739069444806,-920.97,0.00010195,2]
[352382559,1739069444815,-1867.45,0.00010195,2]
[352382560,1739069444825,-789.25,0.00010195,2]
[352382561,1739069444836,-3744.99,0.00010195,2]
[352382562,1739069444845,-1560.02,0.00010195,2]
[352382563,1739069444855,-500.0,0.00010195,2]
[352382564,1739069444864,-736.32,0.00010195,2]
[352382565,1739069444873,-2494.58,0.00010195,2]
[352382566,1739069444882,-947.08,0.00010195,2]
[352382567,1739069444891,-1906.86,0.00010195,2]
[352382568,1739069444900,-1559.78,0.00010195,2]
[352382569,1739069444911,-3359.76,0.00010195,2]
[352382570,1739069444920,-1389.48,0.00010195,2]
[352382571,1739069444929,-1064.16,0.00010195,2]
[352382572,1739069444938,-630.3,0.00010195,2]
[352382573,1739069444948,-999.14,0.00010195,2]
[352382574,1739069444957,-500.0,0.00010195,2]
[352382575,1739069444966,-1578.2,0.00010195,2]
[352382576,1739069444975,-500.0,0.00010195,2]
[352382577,1739069444984,-1129.0,0.00010195,2]
[352382578,1739069444993,-1301.09,0.00010195,2]
[352382579,1739069445002,-1291.18,0.00010195,2]
[352382580,1739069445011,-1876.52,0.00010195,2]
[352382581,1739069445021,-1866.23,0.00010195,2]
[352382582,1739069445032,-2220.41,0.00010195,2]
[352382583,1739069445041,-1564.75,0.00010195,2]
[352382584,1739069445051,-926.11,0.00010195,2]
[352382585,1739069445060,-1329.14,0.00010195,2]
[352382586,1739069445069,-2507.15,0.00010195,2]
[352382587,1739069445078,-587.83,0.00010195,2]
[352382588,1739069445087,-853.77,0.00010195,2]
[352382589,1739069445096,-1628.99,0.00010195,2]
[352382590,1739069445105,-500.0,0.00010195,2]
[352382591,1739069445114,-500.0,0.00010195,2]
[352382592,1739069445122,-218.29528522,0.00010195,2]
[352382593,1739069445131,-954.02,0.00010195,2]
[352382594,1739069445140,-938.82,0.00010195,2]
[352382595,1739069445150,-1573.35,0.00010195,2]
[352382596,1739069445159,-500.0,0.00010195,2]
[352382597,1739069445168,-1805.8,0.00010195,2]
[352382598,1739069445178,-774.74,0.00010195,2]
[352382599,1739069445187,-611.09,0.00010195,2]
[352382600,1739069445197,-500.0,0.00010195,2]
[352382601,1739069445206,-250.0,0.0001025,2]
[352382602,1739069445215,-500.0,0.00010262,2]
[352382603,1739069445225,-500.0,0.00010262,2]
[352382604,1739069445239,-812.04,0.00010262,2]
[352382605,1739069445247,-500.0,0.00010262,2]
[352382606,1739069445256,-500.0,0.00010262,2]
[352382607,1739069445266,-650.98,0.00010262,2]
[352382608,1739069445277,-725.66,0.00010262,2]
[352382609,1739069445286,-500.0,0.00010262,2]
[352382610,1739069445295,-500.0,0.00010262,2]
[352382611,1739069445305,-626.3,0.00010262,2]
[352382612,1739069445314,-500.0,0.00010262,2]
[352382613,1739069445324,-500.0,0.00010262,2]
[352382614,1739069445333,-686.17,0.00010262,2]
[352382615,1739069445342,-751.94,0.00010262,2]
[352382616,1739069445351,-500.0,0.00010262,2]
[352382617,1739069445361,-500.0,0.00010262,2]
[352382618,1739069445370,-809.56,0.00010262,2]
[352382619,1739069445379,-500.0,0.00010262,2]
[352382620,1739069445388,-500.0,0.00010262,2]
[352382621,1739069445397,-500.0,0.00010262,2]
[352382622,1739069445406,-500.0,0.00010262,2]
[352382623,1739069445416,-521.76333632,0.00010262,2]
[352382624,1739069445425,-850.73,0.00010262,2]
[352382625,1739069445434,-500.0,0.00010262,2]
[352382626,1739069445443,-500.0,0.00010262,2]
[352382627,1739069445453,-810.94,0.00010262,2]
[352382628,1739069445462,-500.0,0.00010262,2]
[352382629,1739069445472,-500.0,0.00010262,2]
[352382630,1739069445481,-592.49476317,0.00010262,2]
[352382631,1739069445491,-819.57,0.00010262,2]
[352382632,1739069445499,-284.97279392,0.00010262,2]
[352382633,1739069445508,-556.76,0.00010262,2]
[352382634,1739069445519,-881.6,0.00010262,2]
[352382635,1739069445528,-822.99,0.00010262,2]
[352382636,1739069445537,-720.56,0.00010262,2]
[352382637,1739069445547,-494.90751352,0.00010262,2]
[352382638,1739069445557,-500.0,0.00010262,2]
[352382639,1739069445566,-695.07,0.00010262,2]
[352382640,1739069445577,-788.71,0.00010262,2]
[352382641,1739069445587,-793.3,0.00010262,2]
[352382642,1739069445596,-500.0,0.00010262,2]
[352382643,1739069445605,-500.0,0.00010262,2]
[352382644,1739069445615,-775.16,0.00010262,2]
[352382645,1739069445624,-760.1,0.00010262,2]
[352382646,1739069445633,-646.22,0.00010262,2]
[352382647,1739069445643,-500.0,0.00010262,2]
[352382648,1739069445652,-500.0,0.00010262,2]
[352382649,1739069445661,-1572.53,0.00010262,2]
[352382650,1739069445670,-1155.73,0.00010262,2]
[352382651,1739069445680,-858.34,0.00010262,2]
[352382652,1739069445689,-500.0,0.00010262,2]
[352382653,1739069445698,-1692.92,0.00010262,2]
[352382654,1739069445708,-500.0,0.00010262,2]
[352382655,1739069445718,-2633.54,0.00010262,2]
[352382656,1739069445727,-1151.5,0.00010262,2]
[352382657,1739069445736,-782.41,0.00010262,2]
[352382658,1739069445745,-1084.12,0.00010262,2]
[352382659,1739069445754,-500.0,0.00010262,2]
[352382660,1739069445764,-667.59,0.00010262,2]
[352382661,1739069445773,-701.32,0.00010262,2]
[352382662,1739069445782,-2395.35,0.00010262,2]
[352382663,1739069445792,-235.28108214,0.00010262,2]
[352382664,1739069445801,-608.93,0.00010262,2]
[352382665,1739069445810,-1744.39,0.00010262,2]
[352382666,1739069445820,-713.37,0.00010262,2]
[352382667,1739069445831,-1920.7,0.00010262,2]
[352382668,1739069445842,-1775.02,0.00010262,2]
[352382669,1739069445851,-500.0,0.00010262,2]
[352382670,1739069445861,-998.71,0.00010262,2]
[352382671,1739069445870,-674.24,0.00010262,2]
[352382672,1739069445880,-500.0,0.00010262,2]
[352382673,1739069445889,-1286.34,0.00010262,2]
[352382674,1739069445898,-785.89,0.00010262,2]
[352382675,1739069445908,-1431.71,0.00010262,2]
[352382676,1739069445918,-2291.65,0.00010262,2]
[352382677,1739069445927,-500.0,0.00010262,2]
[352382678,1739069445937,-531.34,0.00010262,2]
[352382679,1739069445947,-984.4,0.00010262,2]
[352382680,1739069445957,-918.47,0.00010262,2]
[352382681,1739069445966,-500.0,0.00010262,2]
[352382683,1739069445976,-500.0,0.00010262,2]
[352382684,1739069445985,-1681.15,0.00010262,2]
[352382685,1739069445994,-586.82,0.00010262,2]
[352382686,1739069446003,-652.27,0.00010262,2]
[352382687,1739069446012,-906.36,0.00010262,2]
[352382688,1739069446022,-2072.47,0.00010262,2]
[352382689,1739069446032,-545.48,0.00010262,2]
[352382690,1739069446041,-852.61,0.00010262,2]
[352382691,1739069446050,-500.0,0.00010262,2]
[352382692,1739069446059,-500.0,0.00010262,2]
[352382693,1739069446068,-500.0,0.00010262,2]
[352382695,1739069446078,-400.29947517,0.00010262,2]
[352382697,1739069446088,-1204.52,0.00010262,2]
[352382699,1739069446097,-581.58,0.00010262,2]
[352382700,1739069446106,-500.0,0.00010262,2]
[352382701,1739069446116,-1195.82,0.00010262,2]
[352382703,1739069446125,-518.24294703,0.00010262,2]
[352382704,1739069446135,-500.0,0.00010262,2]
[352382706,1739069446145,-1261.96,0.00010262,2]
[352382708,1739069446155,-500.0,0.00010262,2]
[352382710,1739069446164,-1407.94,0.00010262,2]
[352382711,1739069446173,-885.46,0.00010262,2]
[352382712,1739069446182,-1639.17,0.00010263,2]
[352382713,1739069446192,-2220.58,0.00010263,2]
[352382714,1739069446202,-4677.96,0.00010263,2]
[352382716,1739069446212,-500.0,0.00010263,2]
[352382717,1739069446221,-1113.07,0.00010263,2]
[352382719,1739069446232,-1207.41,0.00010263,2]
[352382720,1739069446245,-1237.76,0.00010263,2]
[352382721,1739069446255,-701.32,0.00010263,2]
[352382722,1739069446265,-2295.98,0.00010263,2]
[352382723,1739069446274,-316.44728809,0.00010263,2]
[352382724,1739069446285,-918.0,0.00010263,2]
[352382725,1739069446295,-974.27,0.00010263,2]
[352382726,1739069446304,-1487.4,0.00010263,2]
[352382727,1739069446315,-1000.0,0.00010263,2]
[352382728,1739069446325,-1078.29,0.00010263,2]
[352382729,1739069446335,-1542.41,0.00010263,2]
[352382730,1739069446345,-1875.97,0.00010263,2]
[352382731,1739069446354,-502.89612895,0.00010264,2]
[352382732,1739069446364,-500.0,0.00010273,2]
[352382733,1739069446374,-500.0,0.00010273,2]
[352382734,1739069446384,-500.0,0.00010273,2]
[352382735,1739069446394,-500.0,0.00010273,2]
[352382736,1739069446405,-500.0,0.00010273,2]
[352382737,1739069446414,-500.0,0.00010273,2]
[352382738,1739069446423,-500.0,0.00010273,2]
[352382739,1739069446432,-500.0,0.00010273,2]
[352382740,1739069446442,-221.11238063,0.00010273,2]
[352382741,1739069446451,-573.67294391,0.00010273,2]
[352382742,1739069446461,-500.0,0.00010273,2]
[352382743,1739069446471,-179.49748101,0.00010273,2]
[352382744,1739069446480,-500.0,0.00010273,2]
[352382745,1739069446490,-500.0,0.00010273,2]
[352382746,1739069446501,-500.0,0.00010273,2]
[352382747,1739069446511,-612.19,0.00010273,2]
[352382748,1739069446521,-421.56616299,0.00010273,2]
[352382749,1739069446531,-500.0,0.00010273,2]
[352382750,1739069446541,-500.0,0.00010273,2]
[352382751,1739069446551,-500.0,0.00010273,2]
[352382752,1739069446561,-500.0,0.00010273,2]
[352382753,1739069446571,-500.0,0.00010273,2]
[352382754,1739069446581,-500.0,0.00010273,2]
[352382755,1739069446591,-500.0,0.00010273,2]
[352382756,1739069446601,-525.23896206,0.00010273,2]
[352382757,1739069446611,-500.0,0.00010273,2]
[352382758,1739069446621,-500.0,0.00010273,2]
[352382759,1739069446630,-500.0,0.00010273,2]
[352382760,1739069446640,-500.0,0.00010273,2]
[352382761,1739069446650,-500.0,0.00010273,2]
[352382762,1739069446659,-500.0,0.00010273,2]
[352382763,1739069446669,-500.0,0.00010273,2]
[352382764,1739069446679,-199.81381688,0.00010273,2]
[352382765,1739069446688,-500.0,0.00010273,2]
[352382766,1739069446697,-500.0,0.00010273,2]
[352382767,1739069446707,-500.0,0.00010273,2]
[352382768,1739069446716,-500.0,0.00010273,2]
[352382769,1739069446725,-500.0,0.00010273,2]
[352382770,1739069446735,-500.0,0.00010273,2]
[352382771,1739069446744,-500.0,0.00010273,2]
[352382772,1739069446753,-500.0,0.00010273,2]
[352382773,1739069446762,-500.0,0.00010273,2]
[352382774,1739069446771,-500.0,0.00010273,2]
[352382775,1739069446780,-500.0,0.00010273,2]
[352382776,1739069446791,-500.0,0.00010273,2]
[352382777,1739069446799,-500.0,0.00010273,2]
[352382778,1739069446809,-500.0,0.00010273,2]
[352382779,1739069446818,-500.0,0.00010273,2]
[352382780,1739069446827,-500.0,0.00010273,2]
[352382781,1739069446836,-500.0,0.00010273,2]
[352382782,1739069446845,-500.0,0.00010273,2]
[352382783,1739069446854,-500.0,0.00010273,2]
[352382784,1739069446864,-500.0,0.00010273,2]
[352382785,1739069446873,-500.0,0.00010273,2]
[352382786,1739069446883,-500.0,0.00010273,2]
[352382787,1739069446892,-500.0,0.00010273,2]
[352382788,1739069446901,-500.0,0.00010273,2]
[352382789,1739069446910,-500.0,0.00010273,2]
[352382790,1739069446919,-500.0,0.00010273,2]
[352382791,1739069446929,-500.0,0.00010273,2]
[352382792,1739069446938,-428.39773882,0.00010273,2]
[352382793,1739069446947,-167.07930069,0.00010273,2]
[352382794,1739069446957,-500.0,0.00010273,2]
[352382795,1739069446966,-500.0,0.00010273,2]
[352382796,1739069446975,-500.0,0.00010273,2]